lending/lending_fUSD_20240723
["ID","MTS","AMOUNT","RATE_DAILY","PERIOD"]
[332942638,1721694633439,-150.0,0.00010301,2]
[332942639,1721694633448,-355.75,0.00010301,2]
[332942640,1721694633458,-150.0,0.00010301,2]
[332942641,1721694633467,-732.89,0.00010301,2]
[332942642,1721694633479,-150.0,0.00010301,2]
[332942643,1721694633490,-150.0,0.00010301,2]
[332942644,1721694633500,-150.0,0.00010301,2]
[332942645,1721694633510,-150.0,0.00010301,2]
[332942646,1721694633520,-425.44,0.00010301,2]
[332942647,1721694633530,-150.0,0.00010301,2]
[332942648,1721694633540,-425.44,0.00010301,2]
[332942649,1721694633550,-425.44,0.00010301,2]
[332942650,1721694633562,-425.44,0.00010301,2]
[332942651,1721694633571,-425.44,0.00010301,2]
[332942652,1721694633581,-843.24,0.00010301,2]
[332942653,1721694633591,-529.84,0.00010301,2]
[332942654,1721694633600,-529.84,0.00010301,2]
[332942655,1721694633610,-529.84,0.00010301,2]
[332942656,1721694633619,-1000.0,0.00010305,2]
[332942657,1721694633629,-150.0,0.00010362,2]
[332942658,1721694633639,-6709.284,0.00010382,2]
[332942659,1721694633648,-149.98780965,0.00010384,2]
[332942660,1721694633672,-0.01219035,0.00010384,2]
[332942661,1721694633682,-150.0,0.00010389,2]
[332942662,1721694633691,-189.81,0.00010432,2]
[332942663,1721694633701,-150.0,0.00010444,2]
[332942664,1721694633710,-150.0,0.00010447,2]
[332942665,1721694633719,-150.0,0.00010452,2]
[332942666,1721694633729,-150.0,0.00010459,2]
[332942667,1721694633738,-150.0,0.00010494,2]
[332942668,1721694633748,-150.0,0.00010496,2]
[332942669,1721694633758,-150.0,0.0001051,2]
[332942670,1721694633767,-10000.0,0.0001055,2]
[332942671,1721694633777,-150.0,0.00010571,2]
[332942672,1721694633788,-150.0,0.00010594,2]
[332942673,1721694633798,-150.0,0.00010611,2]
[332942674,1721694633808,-150.0,0.0001062,2]
[332942675,1721694633818,-150.0,0.00010641,2]
[332942676,1721694633827,-150.0,0.00010658,2]
[332942677,1721694633837,-150.0,0.00010686,2]
[332942678,1721694633846,-150.0,0.00010691,2]
[332942679,1721694633855,-150.0,0.00010694,2]
[332942680,1721694633866,-150.0,0.00010723,2]
[332942681,1721694633875,-58.61987636,0.00010728,2]
[332942682,1721694633887,-91.38012364,0.00010728,2]
[332942683,1721694633896,-2617.9838,0.00010784,2]
[332942684,1721694633907,-940.27234651,0.00010794,2]
[332942685,1721694633961,-481.98854478,0.00010794,2]
[332942686,1721694633973,-4245.87670871,0.00010794,2]
[332942687,1721694633982,-300.0,0.000108,2]
[332942688,1721694633992,-355.75,0.000108,2]
[332942689,1721694634001,-165.28,0.000108,2]
[332942690,1721694634011,-355.75,0.000108,2]
[332942691,1721694634020,-150.0,0.000108,2]
[332942692,1721694634030,-150.0,0.00010807,2]
[332942693,1721694634039,-150.0,0.00010852,2]
[332942694,1721694634049,-1774.3261475,0.0001089,2]
[332942695,1721694634060,-503.2801319,0.0001089,2]
[332942696,1721694634142,-528.72,0.0001089,2]
[332942697,1721694634316,150.0,8.002e-05,2]
[332942698,1721694634414,150.0,9.009e-05,2]
[332942699,1721694634635,150.0,7.74e-05,2]
[332942700,1721694634673,150.0,8.986e-05,2]
[332942701,1721694634702,150.0,7.723e-05,2]
[332942702,1721694634747,150.0,7.922e-05,2]
[332942703,1721694634790,150.0,8.498e-05,2]
[332942704,1721694635191,150.0,8.163e-05,2]
[332942705,1721694635319,150.0,7.428e-05,2]
[332942706,1721694635432,150.0,7.904e-05,2]
[332942707,1721694635488,150.0,7.843e-05,2]
[332942708,1721694635546,150.0,8.104e-05,2]
[332942709,1721694636616,150.0,8.864e-05,2]
[332942710,1721694636730,150.0,8.612e-05,2]
[332942711,1721694636791,150.0,7.649e-05,2]
[332942712,1721694636862,150.0,7.882e-05,2]
[332942713,1721694636983,150.0,7.917e-05,2]
[332942714,1721694637033,150.0,7.82e-05,2]
[332942715,1721694637083,150.0,7.967e-05,2]
[332942716,1721694637150,150.0,8.524e-05,2]
[332942717,1721694637208,150.0,8.372e-05,2]
[332942718,1721694637245,150.0,7.911e-05,2]
[332942719,1721694637280,150.0,7.679e-05,2]
[332942720,1721694637339,150.0,7.828e-05,2]
[332942721,1721694637397,150.0,8.48e-05,2]
[332942722,1721694637470,150.0,7.464e-05,2]
[332942723,1721694638175,150.0,7.966e-05,2]
[332942724,1721694638224,150.0,7.896e-05,2]
[332942725,1721694638373,150.0,8.358e-05,2]
[332942771,1721694640054,-150.0,9.138e-05,2]
[332942772,1721694640064,-150.0,9.331e-05,2]
[332942773,1721694640073,-150.0,9.332e-05,2]
[332942774,1721694640082,-150.0,9.369e-05,2]
[332942775,1721694640093,-150.0,9.379e-05,2]
[332942776,1721694640103,-150.0,9.418e-05,2]
[332942777,1721694640112,-55.690019,9.463e-05,2]
[332942778,1721694640286,-94.309981,9.463e-05,2]
[332942779,1721694640299,-150.0,9.515e-05,2]
[332942780,1721694640308,-150.0,9.602e-05,2]
[332942781,1721694640318,-150.0,9.658e-05,2]
[332942782,1721694640329,-150.0,9.69e-05,2]
[332942783,1721694640339,-150.0,0.00010021,2]
[332942784,1721694640349,-150.0,0.00010048,2]
[332942785,1721694640358,-150.0,0.00010097,2]
[332942786,1721694640368,-23.345019,0.00010107,2]
[332942787,1721694640379,-126.654981,0.00010107,2]
[332942788,1721694640389,-150.0,0.00010157,2]
[332942789,1721694640399,-150.0,0.00010185,2]
[332942790,1721694640408,-150.0,0.0001034,2]
[332942791,1721694640418,-150.0,0.00010417,2]
[332942792,1721694640427,-150.0,0.00010449,2]
[332942793,1721694640436,-150.0,0.00010563,2]
[332942795,1721694640445,-150.0,0.00010612,2]
[332942796,1721694640454,-150.0,0.00010707,2]
[332942797,1721694640464,-150.0,0.00010808,2]
[332942798,1721694640475,-150.0,0.00010874,2]
[332942799,1721694640486,-193.6737206,0.0001089,2]
[332942800,1721694640499,-2500.0,0.00010891,2]
[332942801,1721694640508,-548.72414245,0.00010893,2]
[332942802,1721694640521,-4186.27582778,0.00010893,2]
[332942803,1721694640532,-404.64145571,0.00010893,2]
[332942804,1721694640545,-556.38,0.00010893,2]
[332942805,1721694640556,-688.35,0.00010893,2]
[332942809,1721694640589,-2931.87895,0.00010893,2]
[332942812,1721694640717,-395.19362923,0.00010893,2]
[332942813,1721694641763,-3950.40628861,0.00010893,2]
[332942814,1721694641834,-282.93299998,0.00010893,2]
[332942815,1721694641857,-23032.23250624,0.00010893,2]
[332942816,1721694641867,-1152.07979419,0.00010893,3]
[332942817,1721694641877,-97770.3317,0.00010894,2]
[332942818,1721694641887,-602.7287,0.00010894,2]
[332942819,1721694641897,-177.5368,0.00010894,2]
[332942820,1721694641908,-1410.4927,0.00010895,2]
[332942821,1721694641918,-1915.0,0.000109,2]
[332942822,1721694641928,-500.0,0.00010906,2]
[332942823,1721694641938,-500.0,0.00010907,2]
[332942824,1721694641948,-226.0577722,0.00010931,2]
[332942825,1721694641960,-150.0,0.00010934,2]
[332942826,1721694641970,-250.0,0.00010959,2]
[332942827,1721694641980,-150.0,0.00010959,2]
[332942828,1721694641991,-5034.56,0.0001099,2]
[332942829,1721694642001,-500.0,0.0001099,2]
[332942830,1721694642010,-2304.67,0.0001099,2]
[332942831,1721694642020,-500.0,0.0001099,2]
[332942832,1721694642029,-500.0,0.0001099,2]
[332942833,1721694642042,-3469.77,0.0001099,2]
[332942834,1721694642052,-741.97,0.0001099,2]
[332942835,1721694642062,-4304.04,0.0001099,2]
[332942836,1721694642072,-1885.79,0.0001099,2]
[332942837,1721694642082,-1122.73,0.0001099,2]
[332942838,1721694642092,-1159.82,0.0001099,2]
[332942839,1721694642102,-611.51,0.0001099,2]
[332942840,1721694642112,-3199.01,0.0001099,2]
[332942841,1721694642123,-1189.64,0.0001099,2]
[332942842,1721694642134,-1738.21,0.0001099,2]
[332942843,1721694642144,-1723.41,0.0001099,2]
[332942844,1721694642154,-884.92,0.0001099,2]
[332942845,1721694642164,-1445.95,0.0001099,2]
[332942846,1721694642174,-889.94,0.0001099,2]
[332942847,1721694642183,-500.0,0.0001099,2]
[332942848,1721694642192,-976.28,0.0001099,2]
[332942849,1721694642202,-2836.92,0.0001099,2]
[332942850,1721694642212,-500.0,0.0001099,2]
[332942851,1721694642222,-1182.28,0.0001099,2]
[332942852,1721694642232,-500.0,0.0001099,2]
[332942853,1721694642242,-508.68,0.0001099,2]
[332942854,1721694642252,-1053.9,0.0001099,2]
[332942855,1721694642262,-2669.94,0.0001099,2]
[332942856,1721694642272,-2669.94,0.0001099,3]
[332942857,1721694642282,-500.0,0.0001099,2]
[332942858,1721694642297,-1441.22,0.0001099,2]
[332942859,1721694642307,-500.0,0.0001099,2]
[332942860,1721694642316,-1263.46,0.0001099,2]
[332942861,1721694642325,-1263.46,0.0001099,3]
[332942862,1721694642335,-500.0,0.0001099,2]
[332942863,1721694642344,-500.0,0.0001099,2]
[332942864,1721694642353,-1432.45,0.0001099,2]
[332942865,1721694642362,-1432.45,0.0001099,3]
[332942866,1721694642372,-3035.71,0.00010991,2]
[332942867,1721694642382,-1237.57,0.00010991,2]
[332942868,1721694642392,-5406.8304877,0.00010991,2]
[332942869,1721694642403,-1415.55102347,0.00010991,2]
[332942870,1721694642415,-1028.443,0.00010991,2]
[332942871,1721694642426,-736.10038563,0.00010991,2]
[332942872,1721694642437,-2500.9851032,0.00010991,2]
[332942873,1721694642447,-1301.97624746,0.00010991,2]
[332942874,1721694642459,-1508.01375254,0.00010991,2]
[332942875,1721694642468,-1113.58876985,0.00010991,2]
[332942876,1721694642493,-1214.15123015,0.00010991,2]
[332942877,1721694642502,-1221.23644784,0.00010991,2]
[332942878,1721694642513,-258.26659757,0.00010991,2]
[332942879,1721694642524,-2520.49695459,0.00010991,2]
[332942880,1721694642537,-296.46207847,0.00010991,2]
[332942881,1721694642548,-546.4121415,0.00010991,2]
[332942882,1721694642560,-2426.50578003,0.00010991,2]
[332942883,1721694642571,-3852.29,0.00010991,2]
[332942884,1721694642581,-2244.19,0.00010991,2]
[332942885,1721694642591,-3193.21975659,0.00010991,2]
[332942886,1721694642609,-65.65024341,0.00010991,2]
[332942887,1721694642618,-1393.81796431,0.00010991,2]
[332942888,1721694642635,-70.77203569,0.00010991,2]
[332942889,1721694642645,-1231.13546126,0.00010991,2]
[332942890,1721694642656,-1092.25453874,0.00010991,2]
[332942891,1721694642666,-1990.58342364,0.00010991,2]
[332942892,1721694642677,-671.95657636,0.00010991,2]
[332942893,1721694642687,-500.0,0.00010991,2]
[332942894,1721694642696,-593.54342364,0.00010991,2]
[332942895,1721694642708,-534.28657636,0.00010991,2]
[332942896,1721694642717,-4710.83907877,0.00010991,3]
[332942897,1721694642729,-323.72092123,0.00010991,3]
[332942898,1721694642739,-199.87655637,0.00010991,4]
[332942899,1721694642751,-3310.30765838,0.00010991,4]
[332942900,1721694642764,-1524.37578525,0.00010991,4]
[332942901,1721694642774,-2197.6284785,0.00010991,5]
[332942902,1721694642786,-2836.9315215,0.00010991,5]
[332942903,1721694642796,-3982.1,0.00010991,2]
[332942904,1721694642806,-5034.56,0.00010991,6]
[332942905,1721694642817,-5034.56,0.00010991,7]
[332942906,1721694642828,-1554.8,0.00010991,2]
[332942907,1721694642838,-1054.85887851,0.00010991,2]
[332942926,1721694645639,-348.04079335,0.00010991,2]
[332942927,1721694645815,-500.0,0.0001099,2]
[332942928,1721694645826,-957.09613627,0.00010991,2]
[332942929,1721694645838,-246.20419187,0.00010991,2]
[332942930,1721694645847,-285.4306888,0.00010991,3]
[332942938,1721694649856,-355.75,0.00010178,2]
[332942939,1721694649866,-165.28,0.00010178,2]
[332942940,1721694649876,-529.84,0.00010301,2]
[332942941,1721694649886,-153.94,0.00010959,2]
[332942942,1721694649896,-152.1870628,0.0001099,2]
[332942943,1721694649908,-347.8129372,0.0001099,2]
[332942944,1721694649918,-170.98470952,0.00010991,3]
[332942945,1721694649931,-43.58460168,0.00010991,3]
[332942946,1721694649941,-301.07311689,0.00010991,4]
[332942947,1721694649953,-198.92688311,0.00010991,4]
[332942948,1721694649963,-500.0,0.00010991,5]
[332942949,1721694649973,-236.60777968,0.00010991,2]
[332942950,1721694649985,-1639.62222032,0.00010991,2]
[332942951,1721694649996,-500.0,0.00010991,6]
[332942952,1721694650006,-500.0,0.00010991,7]
[332942953,1721694650016,-2147.86475448,0.00010991,3]
[332942954,1721694650028,-156.80524552,0.00010991,3]
[332942955,1721694650038,-283.49453764,0.00010991,4]
[332942956,1721694650405,-694.73,0.0001099,2]
[332942957,1721694650415,-2021.17546236,0.00010991,4]
[332942958,1721694650424,-2304.67,0.00010991,5]
[332942959,1721694650433,-2304.67,0.00010991,6]
[332942960,1721694650443,-2304.67,0.00010991,7]
[332942961,1721694650453,-500.0,0.00010991,3]
[332942962,1721694650462,-500.0,0.00010991,4]
[332942963,1721694650471,-500.0,0.00010991,5]
[332942964,1721694650481,-500.0,0.00010991,6]
[332942965,1721694650494,-500.0,0.00010991,7]
[332942966,1721694650504,-2298.17,0.00010991,2]
[332942967,1721694650513,-8920.53,0.00010991,2]
[332942968,1721694650522,-500.0,0.00010991,3]
[332942969,1721694650533,-500.0,0.00010991,4]
[332942970,1721694650544,-500.0,0.00010991,5]
[332942971,1721694650553,-500.0,0.00010991,6]
[332942972,1721694650565,-500.0,0.00010991,7]
[332942973,1721694650575,-3469.77,0.00010991,3]
[332942974,1721694650584,-3469.77,0.00010991,4]
[332942975,1721694650594,-3469.77,0.00010991,5]
[332942976,1721694650604,-3469.77,0.00010991,6]
[332942977,1721694650613,-3469.77,0.00010991,7]
[332942978,1721694650623,-2931.31215136,0.00010991,2]
[332942979,1721694650635,-895.73293621,0.00010991,2]
[332942980,1721694651005,-254.08592998,0.00010991,2]
[332942981,1721694651016,-319.31715993,0.00010991,2]
[332942982,1721694651028,-2356.43045917,0.00010991,2]
[332942983,1721694651061,-1353.49136335,0.00010991,2]
[332942984,1721694651070,-1557.06674312,0.00010991,2]
[332942985,1721694651082,-890.2,0.00010991,2]
[332942986,1721694651094,-2544.01325688,0.00010991,2]
[332942987,1721694651104,-741.97,0.00010991,3]
[332942988,1721694651113,-741.97,0.00010991,4]
[332942989,1721694651123,-741.97,0.00010991,5]
[332942990,1721694651133,-741.97,0.00010991,6]
[332942991,1721694651143,-268.5577555,0.00010991,7]
[332942992,1721694651164,-473.4122445,0.00010991,7]
[332942993,1721694651174,-2733.80274664,0.00010991,3]
[332942994,1721694651186,-419.73188507,0.00010991,3]
[332943003,1721695021936,170.82,8.219e-05,2]
[332943004,1721695067055,5479.18,8.219e-05,2]
[332943005,1721695067076,24520.82,8.219e-05,2]
[332943007,1721695415355,150.0,8.369e-05,2]
[332943008,1721695475236,150.0,8.73e-05,2]
[332943012,1721695534352,150.0,8.585e-05,2]
[332943013,1721695535142,83.0,8.808e-05,2]
[332943014,1721695535168,67.0,8.808e-05,2]
[332943015,1721695535229,150.0,7.859e-05,2]
[332943016,1721695535512,150.0,8.661e-05,2]
[332943017,1721695535574,150.0,8.089e-05,2]
[332943018,1721695535739,150.0,7.655e-05,2]
[332943019,1721695535824,150.0,8.486e-05,2]
[332943020,1721695553968,185.23,8.219e-05,2]
[332943023,1721695594533,150.0,8.122e-05,2]
[332943024,1721695594676,150.0,8.249e-05,2]
[332943025,1721695594741,150.0,8.99e-05,2]
[332943026,1721695594844,150.0,8.835e-05,2]
[332943027,1721695594905,150.0,8.288e-05,2]
[332943028,1721695594948,150.0,8.498e-05,2]
[332943029,1721695595017,150.0,7.413e-05,2]
[332943030,1721695595118,150.0,8.99e-05,2]
[332943031,1721695595414,150.0,7.32e-05,2]
[332943032,1721695595465,150.0,7.642e-05,2]
[332943033,1721695595501,150.0,7.577e-05,2]
[332943034,1721695595530,150.0,7.633e-05,2]
[332943035,1721695595567,150.0,7.403e-05,2]
[332943036,1721695595596,150.0,8.908e-05,2]
[332943037,1721695595644,150.0,7.47e-05,2]
[332943038,1721695595682,150.0,8.618e-05,2]
[332943039,1721695595725,150.0,8.017e-05,2]
[332943040,1721695595791,150.0,8.97e-05,2]
[332943047,1721695716316,150.0,7.831e-05,2]
[332943048,1721695716717,150.0,7.559e-05,2]
[332943049,1721695716909,150.0,8.752e-05,2]
[332943050,1721695717076,150.0,8.732e-05,2]
[332943051,1721695774335,150.0,7.69e-05,2]
[332943052,1721695774414,150.0,8.147e-05,2]
[332943053,1721695774460,150.0,7.268e-05,2]
[332943054,1721695774511,150.0,7.193e-05,2]
[332943055,1721695774602,150.0,7.606e-05,2]
[332943060,1721695832460,-150.0,9.044e-05,2]
[332943061,1721695832471,-150.0,9.059e-05,2]
[332943062,1721695832481,-150.0,9.081e-05,2]
[332943063,1721695832492,-150.0,9.149e-05,2]
[332943064,1721695832502,-57.98212451,9.149e-05,2]
[332943065,1721695832549,-115.1756172,9.149e-05,2]
[332943066,1721695832559,-150.0,9.166e-05,2]
[332943067,1721695832568,-150.0,9.183e-05,2]
[332943068,1721695832578,-155.0,9.219e-05,2]
[332943069,1721695832587,-150.0,9.23e-05,2]
[332943070,1721695832597,-150.0,9.323e-05,2]
[332943071,1721695832606,-150.0,9.328e-05,2]
[332943072,1721695832615,-150.0,9.342e-05,2]
[332943073,1721695832625,-150.0,9.349e-05,2]
[332943074,1721695832635,-150.0,9.581e-05,2]
[332943075,1721695832645,-150.0,9.612e-05,2]
[332943076,1721695832654,-150.0,9.688e-05,2]
[332943077,1721695832664,-1000.0,9.719e-05,2]
[332943078,1721695832673,-250.0,9.812e-05,2]
[332943079,1721695832683,-150.0,9.829e-05,2]
[332943080,1721695832693,-150.0,9.848e-05,2]
[332943081,1721695832702,-150.0,0.00010116,2]
[332943082,1721695832712,-150.0,0.00010151,2]
[332943083,1721695832721,-150.0,0.00010158,2]
[332943084,1721695832731,-165.28,0.00010178,2]
[332943085,1721695832741,-355.75,0.00010178,2]
[332943086,1721695832750,-150.0,0.0001031,2]
[332943087,1721695832760,-150.0,0.00010348,2]
[332943088,1721695832770,-528.222907,0.00010353,2]
[332943089,1721695832780,-150.0,0.00010405,2]
[332943090,1721695832789,-150.0,0.00010418,2]
[332943091,1721695832799,-150.0,0.00010435,2]
[332943092,1721695832808,-185.23,0.00010465,2]
[332943093,1721695832818,-150.0,0.00010465,2]
[332943094,1721695832831,-150.0,0.00010507,2]
[332943096,1721695832841,-150.0,0.00010515,2]
[332943098,1721695832850,-150.0,0.00010613,2]
[332943100,1721695832860,-150.0,0.00010668,2]
[332943102,1721695832871,-1000.0,0.000107,2]
[332943103,1721695832880,-150.0,0.00010735,2]
[332943104,1721695832890,-150.0,0.00010735,2]
[332943105,1721695832899,-150.0,0.00010741,2]
[332943106,1721695832909,-150.0,0.00010741,2]
[332943107,1721695832919,-150.0,0.00010742,2]
[332943108,1721695832929,-6349.58,0.00010742,2]
[332943109,1721695832938,-150.0,0.00010743,2]
[332943110,1721695832948,-150.0,0.00010745,2]
[332943111,1721695832957,-150.0,0.00010747,2]
[332943112,1721695832966,-150.0,0.00010752,2]
[332943113,1721695832976,-150.0,0.00010756,2]
[332943114,1721695832985,-150.0,0.00010763,2]
[332943115,1721695832996,-150.0,0.00010767,2]
[332943116,1721695833006,-150.0,0.00010769,2]
[332943117,1721695833015,-150.0,0.00010773,2]
[332943118,1721695833025,-150.0,0.00010779,2]
[332943119,1721695833034,-150.0,0.00010779,2]
[332943120,1721695833044,-7894.50618587,0.00010784,2]
[332943121,1721695833054,-150.0,0.0001079,2]
[332943122,1721695833063,-150.0,0.00010791,2]
[332943123,1721695833073,-1168.7047,0.00010794,2]
[332943124,1721695833082,-150.0,0.00010796,2]
[332943125,1721695833091,-1055.99,0.000108,2]
[332943126,1721695833100,-529.63,0.000108,2]
[332943127,1721695833110,-150.0,0.000108,2]
[332943128,1721695833120,-1000.0,0.000108,2]
[332943129,1721695833129,-150.0,0.00010804,2]
[332943130,1721695833139,-150.0,0.0001081,2]
[332943131,1721695833148,-150.0,0.0001081,2]
[332943132,1721695833158,-150.0,0.00010813,2]
[332943133,1721695833167,-150.0,0.00010816,2]
[332943134,1721695833176,-150.0,0.00010821,2]
[332943135,1721695833187,-150.0,0.00010832,2]
[332943136,1721695833196,-150.0,0.00010835,2]
[332943137,1721695833206,-150.0,0.00010838,2]
[332943138,1721695833216,-150.0,0.00010839,2]
[332943139,1721695833225,-150.0,0.00010847,2]
[332943140,1721695833235,-150.0,0.00010849,2]
[332943141,1721695833246,-150.0,0.00010857,2]
[332943142,1721695833256,-150.0,0.00010858,2]
[332943143,1721695833266,-150.0,0.00010859,2]
[332943144,1721695833276,-150.0,0.00010861,2]
[332943145,1721695833286,-150.0,0.00010867,2]
[332943146,1721695833295,-1500.0,0.00010873,2]
[332943147,1721695833305,-150.0,0.00010874,2]
[332943148,1721695833314,-150.0,0.00010875,2]
[332943149,1721695833324,-3000.0,0.0001088,2]
[332943150,1721695833332,-150.0,0.00010884,2]
[332943151,1721695833343,-150.0,0.00010885,2]
[332943152,1721695833353,-150.0,0.00010887,2]
[332943153,1721695833363,-163.04018845,0.00010889,2]
[332943154,1721695833372,-150.0,0.00010891,2]
[332943155,1721695833382,-150.0,0.00010894,2]
[332943156,1721695833392,-529.84,0.000109,2]
[332943157,1721695833402,-150.0,0.000109,2]
[332943158,1721695833411,-150.0,0.000109,2]
[332943159,1721695833421,-888.65158284,0.000109,2]
[332943160,1721695833430,-1141.0,0.000109,2]
[332943161,1721695833440,-150.0,0.00010902,2]
[332943162,1721695833449,-500.0,0.00010902,2]
[332943163,1721695833459,-500.0,0.00010903,2]
[332943164,1721695833468,-150.0,0.00010904,2]
[332943165,1721695833477,-150.0,0.00010905,2]
[332943166,1721695833486,-150.0,0.00010911,2]
[332943167,1721695833497,-150.0,0.00010916,2]
[332943168,1721695833507,-150.0,0.00010916,2]
[332943169,1721695833517,-150.0,0.00010917,2]
[332943170,1721695833526,-62.51794964,0.0001092,2]
[332943171,1721695833539,-87.48205036,0.0001092,2]
[332943172,1721695833547,-150.0,0.00010922,2]
[332943173,1721695833556,-150.0,0.00010925,2]
[332943174,1721695833566,-150.0,0.00010927,2]
[332943175,1721695833575,-150.0,0.00010933,2]
[332943176,1721695833585,-131.34239481,0.00010934,2]
[332943177,1721695833596,-757.13168339,0.00010934,2]
[332943178,1721695833609,-111.5259218,0.00010934,2]
[332943179,1721695833620,-150.0,0.00010934,2]
[332943180,1721695833629,-150.0,0.00010936,2]
[332943181,1721695833639,-150.0,0.00010938,2]
[332943182,1721695833649,-150.0,0.00010943,2]
[332943183,1721695833658,-1000.0,0.00010945,2]
[332943184,1721695833667,-1000.0,0.00010945,2]
[332943185,1721695833677,-1000.0,0.00010945,2]
[332943186,1721695833686,-512.0844,0.00010945,2]
[332943187,1721695833696,-150.0,0.00010946,2]
[332943188,1721695833706,-150.0,0.00010951,2]
[332943189,1721695833715,-500.0,0.00010958,2]
[332943190,1721695833725,-500.0,0.00010958,2]
[332943191,1721695833734,-1133.02,0.00010958,2]
[332943192,1721695833745,-2447.44,0.00010958,2]
[332943193,1721695833754,-1385.71,0.00010958,2]
[332943194,1721695833764,-500.0,0.00010958,2]
[332943195,1721695833773,-518.30172573,0.00010958,2]
[332943196,1721695833783,-500.0,0.00010958,2]
[332943197,1721695833792,-500.0,0.00010958,2]
[332943198,1721695833802,-500.0,0.00010958,2]
[332943199,1721695833811,-500.0,0.00010958,2]
[332943200,1721695833821,-500.0,0.00010958,2]
[332943201,1721695833832,-500.0,0.00010958,2]
[332943202,1721695833844,-1938.58,0.00010958,2]
[332943203,1721695833854,-500.0,0.00010958,2]
[332943204,1721695833863,-859.62,0.00010958,2]
[332943205,1721695833872,-500.0,0.00010958,2]
[332943206,1721695833883,-500.0,0.00010958,2]
[332943207,1721695833892,-2909.22,0.00010958,2]
[332943208,1721695833901,-665.78,0.00010958,2]
[332943209,1721695833911,-500.0,0.00010958,2]
[332943210,1721695833921,-870.73,0.00010958,2]
[332943211,1721695833931,-1412.68,0.00010958,2]
[332943212,1721695833941,-4055.46,0.00010958,2]
[332943213,1721695833950,-500.0,0.00010958,2]
[332943214,1721695833960,-500.0,0.00010958,2]
[332943215,1721695833970,-500.0,0.00010958,2]
[332943216,1721695833979,-879.06,0.00010958,2]
[332943217,1721695833988,-4056.86,0.00010958,2]
[332943218,1721695833998,-500.0,0.00010958,2]
[332943219,1721695834009,-500.0,0.00010958,2]
[332943220,1721695834019,-500.0,0.00010958,2]
[332943221,1721695834029,-500.0,0.00010958,2]
[332943222,1721695834039,-1727.6,0.00010958,2]
[332943223,1721695834049,-500.0,0.00010958,2]
[332943224,1721695834059,-500.0,0.00010958,2]
[332943225,1721695834068,-500.0,0.00010958,2]
[332943226,1721695834077,-650.63,0.00010958,2]
[332943227,1721695834087,-500.0,0.00010958,2]
[332943228,1721695834097,-500.0,0.00010958,2]
[332943229,1721695834106,-5090.38,0.00010958,2]
[332943230,1721695834116,-500.0,0.00010958,2]
[332943231,1721695834126,-1703.53,0.00010958,2]
[332943232,1721695834135,-500.0,0.00010958,2]
[332943233,1721695834144,-500.0,0.00010958,2]
[332943234,1721695834154,-2692.91,0.00010958,2]
[332943235,1721695834164,-663.58,0.00010958,2]
[332943236,1721695834173,-500.0,0.00010958,2]
[332943237,1721695834183,-500.0,0.00010958,2]
[332943238,1721695834193,-500.0,0.00010958,2]
[332943239,1721695834202,-500.0,0.00010958,2]
[332943240,1721695834211,-1534.1,0.00010958,2]
[332943241,1721695834221,-603.1,0.00010958,2]